bitfinex-derivatives/quotes_ETHF0:USTF0_20260118
["timestamp","ask_amount","ask_price","bid_price","bid_amount"]
[1768772830670,0.52361047,3346.3,3344.8,1.29715888]
[1768772830878,0.92885763,3346.2,3344.8,1.29715888]
[1768772831075,0.52361047,3346.3,3344.8,1.30026974]
[1768772831275,0.95261762,3346.2,3344.8,1.30026974]
[1768772831475,0.52361047,3346.3,3344.8,1.30026974]
[1768772831675,0.95259558,3346.2,3344.8,1.30026974]
[1768772831875,0.52361047,3346.3,3344.8,1.30026974]
[1768772832478,0.52361047,3346.3,3344.8,0.34690641]
[1768772834180,0.14947,3346.2,3344.8,0.34690641]
[1768772837673,0.52359047,3346.7,3345.1,0.34379555]
[1768772837878,0.95082857,3346.6,3345.1,0.34379555]
[1768772838081,0.52359047,3346.7,3345.1,0.34379555]
[1768772838289,0.950773,3346.6,3345.1,0.34379555]
[1768772838479,0.52359047,3346.7,3345.1,0.34379555]
[1768772838778,0.95076034,3346.6,3345.1,0.34379555]
[1768772838978,0.52359047,3346.7,3345.1,0.34379555]
[1768772839178,0.95076045,3346.6,3345.1,0.34379555]
[1768772839480,0.52359047,3346.7,3345.1,0.34379555]
[1768772839785,0.95073195,3346.6,3345.1,0.34379555]
[1768772840080,0.52359047,3346.7,3345.1,0.34379555]
[1768772840284,0.95074335,3346.6,3345.1,0.34379555]
[1768772840485,0.52359047,3346.7,3345.1,0.34379555]
[1768772840789,0.9507147,3346.6,3345.1,0.34379555]
[1768772841086,0.52359047,3346.7,3345.1,0.34379555]
[1768772841385,1.10018191,3346.6,3345.1,0.34379555]
[1768772841585,0.14945,3346.6,3345.1,0.34379555]
[1768772844986,0.14944,3347.0,3345.1,0.34379555]
[1768772845290,0.14944,3347.0,3345.5,0.35656187]
[1768772855297,0.14944,3346.9,3345.5,0.35656187]
[1768772855494,0.14946,3346.6,3344.9,0.35656187]
[1768772878915,0.14946,3346.6,3345.5,0.95348982]
[1768772880212,0.14946,3346.6,3345.2,0.34658735]
[1768772880410,1.10294982,3346.6,3345.2,0.34658735]
[1768772880914,0.95348982,3346.2,3344.8,1.30318803]
[1768772881117,0.46745533,3346.2,3344.8,1.30318803]
[1768772881306,0.46745533,3346.2,3344.8,0.34969821]
[1768772881505,0.46745533,3346.2,3345.0,0.95348982]
[1768772881706,1.10294982,3346.4,3345.0,0.95348982]
[1768772882815,0.14946,3346.4,3345.2,0.95348982]
[1768772885813,0.36078665,3346.3,3344.8,0.34969821]
[1768772886014,0.95348982,3346.2,3344.8,0.95660068]
[1768772886819,0.95348982,3346.2,3345.0,0.95348982]
[1768772887320,0.51025665,3346.3,3345.0,0.95348982]
[1768772889721,1.46374647,3346.3,3345.0,0.95348982]
[1768772894023,0.14947,3346.3,3345.2,0.95348982]
[1768772902540,1.10295982,3346.2,3345.0,0.31965194]
[1768772906139,0.14947,3346.2,3345.0,0.31965194]
[1768772916654,0.14947,3346.2,3345.1,0.95348982]
[1768772917347,0.14947,3346.2,3345.4,0.95348982]
[1768772917553,0.14945,3346.6,3345.7,0.95348982]
[1768772920140,0.14944,3347.0,3345.7,1.29429204]
[1768772920344,0.96487598,3346.9,3345.7,1.29429204]
[1768772920545,0.14944,3347.0,3345.7,1.29429204]
[1768772920746,0.96486708,3346.9,3345.7,1.29429204]
[1768772921052,0.14944,3347.0,3345.7,1.29429204]
[1768772921254,0.96486727,3346.9,3345.7,1.29429204]
[1768772921454,0.14944,3347.0,3345.7,1.29429204]
[1768772921656,0.96468599,3346.9,3345.7,1.29429204]
[1768772921846,0.14944,3347.0,3345.7,1.29429204]
[1768772922042,0.96468596,3346.9,3345.7,1.29429204]
[1768772922245,0.14944,3347.0,3345.7,1.29429204]
[1768772922453,0.9645449,3346.9,3345.7,1.29429204]
[1768772922647,0.14944,3347.0,3345.7,1.29429204]
[1768772922847,0.96454489,3346.9,3345.7,1.29429204]
[1768772923046,0.14944,3347.0,3345.9,0.95348982]
[1768772923247,0.96454485,3346.9,3345.9,0.95348982]
[1768772923449,0.14944,3347.0,3345.9,0.95348982]
[1768772923751,0.96443028,3346.9,3345.9,1.29429204]
[1768772923958,0.14944,3347.0,3346.0,0.34080222]
[1768772930959,1.10292982,3346.9,3345.6,0.34080222]
[1768772931163,0.95348982,3346.7,3345.6,0.34080222]
[1768772932362,1.10293982,3346.7,3345.6,0.34080222]
[1768772933153,1.10293982,3346.7,3345.4,0.95348982]
[1768772933359,1.10293982,3346.7,3345.2,1.28560559]
[1768772937170,1.10293982,3346.7,3345.4,0.95348982]
[1768772937666,0.14945,3346.7,3345.6,0.95348982]
[1768772940477,0.14945,3346.7,3345.8,1.28560559]
[1768772940674,0.14943,3347.1,3345.8,1.28560559]
[1768772940876,0.14943,3347.1,3345.9,0.33211577]
[1768772942270,0.96371465,3347.0,3345.9,0.33211577]
[1768772942467,0.14943,3347.1,3345.9,0.33211577]
[1768772942666,0.96378959,3347.0,3345.9,0.33211577]
[1768772942868,0.14943,3347.1,3345.9,0.33211577]
[1768772943069,0.9637896,3347.0,3345.9,0.33211577]
[1768772943269,0.14943,3347.1,3345.9,0.33211577]
[1768772943472,0.96390063,3347.0,3345.9,0.33211577]
[1768772943679,0.14943,3347.1,3345.9,0.33211577]
[1768772943878,0.9639006,3347.0,3345.9,0.33211577]
[1768772944179,0.14943,3347.1,3345.9,0.33211577]
[1768772944378,0.96403561,3347.0,3345.9,0.33211577]
[1768772944580,0.14943,3347.1,3345.9,0.33211577]
[1768772944880,0.96403562,3347.0,3345.9,0.33211577]
[1768772945179,0.14943,3347.1,3345.9,0.33211577]
[1768772945382,0.14944,3346.9,3345.9,0.33211577]
[1768772945574,0.14944,3346.9,3345.2,0.33211577]
[1768772946588,0.14945,3346.7,3345.2,0.33211577]
[1768772960388,0.14943,3347.1,3345.2,0.33211577]
[1768772960588,0.96497184,3347.0,3345.6,0.33211577]
[1768772960789,0.14943,3347.1,3345.6,0.33211577]
[1768772960988,0.96496238,3347.0,3345.6,0.33211577]
[1768772961289,0.14943,3347.1,3345.6,0.33211577]
[1768772961488,0.96491017,3347.0,3345.6,0.33211577]
[1768772961788,0.14943,3347.1,3345.6,0.33211577]
[1768772961978,0.96491017,3347.0,3345.6,0.33211577]
[1768772962176,0.14943,3347.1,3345.6,0.33211577]
[1768772962387,0.96486528,3347.0,3345.6,0.33211577]
[1768772962588,0.14943,3347.1,3345.6,0.33211577]
[1768772962776,0.96486528,3347.0,3345.6,0.33211577]
[1768772962980,0.14943,3347.1,3345.6,0.33211577]
[1768772963188,0.96486528,3347.0,3345.6,0.33211577]
[1768772963386,0.14943,3347.1,3345.6,0.33211577]
[1768772963580,0.96483009,3347.0,3345.6,0.33211577]
[1768772963781,0.14943,3347.1,3345.6,0.33211577]
[1768772963986,0.96483009,3347.0,3345.6,0.33211577]
[1768772964182,0.14943,3347.1,3345.6,0.33211577]
[1768772964388,0.96480666,3347.0,3345.6,0.33211577]
[1768772964582,0.14943,3347.1,3345.6,0.33211577]
[1768772964781,0.96480664,3347.0,3345.6,0.33211577]
[1768772964989,0.14943,3347.1,3345.6,0.33211577]
[1768772965289,0.96479086,3347.0,3345.6,0.33211577]
[1768772965485,0.14943,3347.1,3345.6,0.33211577]
[1768772965686,0.96479086,3347.0,3345.6,0.33211577]
[1768772965891,0.14943,3347.1,3345.6,0.33211577]
[1768772978097,0.96293572,3347.0,3345.6,0.33211577]
[1768772978300,0.14944,3347.0,3345.6,0.33211577]
[1768772982996,0.14944,3346.9,3345.6,0.33211577]
[1768772983200,0.14944,3346.8,3345.6,0.33211577]
[1768772998216,0.14944,3346.8,3345.1,0.3180283]
[1768773002921,0.14944,3346.8,3345.6,1.27136525]
[1768773003324,0.14944,3346.8,3345.6,0.3180283]
[1768773003525,1.10277695,3346.8,3345.3,0.95333695]
[1768773004734,1.10277695,3346.8,3345.3,1.27136525]
[1768773007934,0.14945,3346.7,3345.3,1.27136525]
[1768773009142,0.14945,3346.7,3345.3,0.3180283]
[1768773009340,0.14945,3346.7,3345.4,0.95333695]
[1768773010134,0.14945,3346.7,3345.4,1.27136525]
[1768773023767,0.95333695,3346.3,3345.0,0.32643917]
[1768773023956,0.95333695,3346.1,3345.0,0.32643917]
[1768773024358,1.10281695,3346.1,3345.0,0.32643917]
[1768773024664,1.10281695,3346.1,3344.8,1.67111086]
[1768773024665,0.95333695,3345.8,3344.8,0.00311086]
[1768773026456,0.95333695,3346.0,3344.8,0.00311086]
[1768773026860,1.10281695,3346.0,3344.8,0.00311086]
[1768773027457,0.95333695,3345.8,3344.8,0.00311086]
[1768773027866,0.95333695,3345.4,3344.8,0.00311086]
[1768773028057,0.95333695,3345.4,3344.2,1.99443917]
[1768773028257,1.10283695,3345.6,3344.2,2.94777612]
[1768773028453,0.95333695,3345.4,3344.2,1.99443917]
[1768773029064,0.95333695,3345.4,3344.2,1.99684226]
[1768773036269,1.10284695,3345.4,3344.2,1.67040309]
[1768773036659,1.10284695,3345.4,3344.2,0.00240309]
[1768773038764,0.14951,3345.3,3344.2,0.00240309]
[1768773039368,0.14952,3345.2,3344.2,0.00240309]
[1768773039965,1.10285695,3345.2,3344.2,0.00240309]
[1768773040267,1.10286695,3345.0,3344.2,0.00240309]
[1768773040463,1.10286695,3345.0,3342.4,6.476]
[1768773040464,0.95333695,3344.8,3343.4,0.29906513]
[1768773040666,0.95333695,3344.8,3343.5,0.95333695]
[1768773041467,0.95673957,3344.8,3343.5,0.95546095]
[1768773042481,1.10626957,3344.8,3343.5,0.95546095]
[1768773051984,0.15293262,3344.8,3343.5,0.95546095]
[1768773052183,1.10626957,3344.8,3343.5,0.95546095]
[1768773053979,1.10626957,3344.8,3343.6,0.95333695]
[1768773056877,0.14954,3344.7,3343.5,0.95546095]
[1768773058580,0.14955,3344.5,3343.5,0.002124]
[1768773068490,0.00340262,3344.8,3343.5,0.002124]
[1768773070192,0.15293262,3344.8,3343.5,0.002124]
[1768773080196,0.14954,3344.7,3343.5,0.002124]
[1768773080506,0.45727178,3344.6,3343.5,0.002124]
[1768773085410,0.14955,3344.4,3343.5,0.002124]
[1768773085607,0.2977385,3344.5,3343.5,0.002124]
[1768773086606,0.14955,3344.4,3343.5,0.002124]
[1768773090214,0.4472885,3344.4,3342.7,0.95480946]
[1768773090410,0.2977385,3344.3,3342.7,1.26818254]
[1768773091217,0.2977385,3344.3,3342.7,1.27125584]
[1768773091612,0.2977385,3344.3,3342.8,0.31337308]
[1768773096615,0.14955,3344.4,3342.8,0.31337308]
[1768773097019,0.14956,3344.3,3342.7,0.0030733]
[1768773097218,0.14957,3344.0,3342.7,0.0030733]
[1768773097513,0.47139162,3344.0,3342.7,0.0030733]
[1768773101216,0.32182162,3343.9,3342.7,0.0030733]
[1768773106428,0.47140162,3343.8,3342.7,0.0030733]
[1768773106623,0.32182162,3343.7,3342.7,0.0030733]
[1768773106818,0.32182162,3343.6,3342.7,0.0030733]
[1768773107329,0.47141162,3343.6,3342.7,0.0030733]
[1768773107529,0.32182162,3343.5,3342.7,0.0030733]
[1768773107725,0.47141162,3343.5,3342.7,0.0030733]
[1768773107935,0.32182162,3343.3,3341.7,0.31755228]
[1768773109030,0.32182162,3343.3,3341.7,0.3197293]
[1768773110023,0.47143162,3343.2,3341.7,0.3197293]
[1768773111021,0.32182162,3343.1,3341.7,0.00217702]
[1768773111227,0.32182162,3342.5,3341.4,0.005986]
[1768773112334,0.32182162,3342.5,3341.4,0.00869475]
[1768773114735,0.46789619,3342.4,3341.4,0.00869475]
[1768773114936,0.47086212,3342.4,3341.4,0.00869475]
[1768773116738,0.31825619,3342.3,3341.4,0.00869475]
[1768773117633,0.31825619,3342.2,3340.7,1.671]
[1768773118634,0.14965,3342.1,3340.7,1.67360105]
[1768773118829,0.46792619,3341.9,3340.7,0.00260105]
[1768773119337,0.31825619,3341.6,3340.7,0.00260105]
[1768773120842,0.31825619,3341.6,3340.0,1.9812798]
[1768773121146,0.31825619,3341.6,3340.0,1.671]
[1768773121340,0.31825619,3341.3,3340.0,1.671]
[1768773121643,0.31825619,3341.2,3340.0,1.671]
[1768773122039,0.31825619,3341.2,3340.0,0.00291652]
[1768773122241,0.14972,3340.6,3338.8,2.993]
[1768773122540,0.31825619,3341.0,3339.4,1.26508926]
[1768773122745,0.46793619,3341.5,3340.2,0.95480946]
[1768773122936,0.46793619,3341.5,3340.6,0.95627832]
[1768773123141,0.14968,3341.5,3340.6,0.00310038]
[1768773123337,0.31825619,3341.2,3339.8,0.95627832]
[1768773123538,0.31825619,3341.2,3340.0,0.95627832]
[1768773123742,0.31825619,3341.2,3340.4,0.95627832]
[1768773124039,0.46793619,3341.6,3339.5,0.3102798]
[1768773124241,0.46793619,3341.6,3340.4,0.95627832]
[1768773128047,1.42421451,3341.6,3340.4,0.95627832]
[1768773128250,1.42421451,3341.6,3340.2,0.95627832]
[1768773129442,0.31825619,3341.0,3339.5,0.9591275]
[1768773130049,0.31825619,3341.0,3339.7,0.95627832]
[1768773130247,0.31825619,3341.0,3339.5,0.00284918]
[1768773130453,1.42425451,3340.7,3339.5,0.00284918]
[1768773130653,0.31825619,3340.6,3339.5,0.00284918]
[1768773131448,0.95627832,3340.5,3339.5,0.00284918]
[1768773131646,0.14973,3340.4,3339.5,0.00284918]
[1768773131855,0.95627832,3340.1,3339.5,0.00284918]
[1768773132159,0.14974,3340.2,3339.3,0.95627832]
[1768773132954,0.14974,3340.2,3339.3,0.95860591]
[1768773134152,0.14974,3340.2,3339.3,0.00232759]
[1768773135352,0.31825619,3340.5,3339.3,0.95860591]
[1768773135948,0.31825619,3340.5,3339.3,0.00232759]
[1768773137557,0.14973,3340.4,3339.3,0.00232759]
[1768773139365,0.46798619,3340.4,3339.3,0.00232759]
[1768773146869,0.14972,3340.7,3339.8,0.95627832]
[1768773147571,0.14972,3340.7,3339.6,0.95627832]
[1768773148071,0.1497,3341.1,3340.0,0.95627832]
[1768773148265,0.96588477,3341.0,3340.0,0.95627832]
[1768773148573,0.96588477,3340.9,3340.0,0.95627832]
[1768773148766,0.1497,3341.1,3340.0,0.95627832]
[1768773148963,0.96668063,3341.0,3340.0,0.95627832]
[1768773149167,0.96668063,3340.9,3340.0,0.95627832]
[1768773149377,0.1497,3341.1,3340.0,0.95627832]
[1768773149581,0.1497,3341.1,3340.2,0.95627832]
[1768773149582,0.96708397,3341.0,3340.2,0.95627832]
[1768773149879,0.1497,3341.1,3340.2,0.95627832]
[1768773150080,0.96701413,3341.0,3340.0,0.95627832]
[1768773150277,0.1497,3341.1,3340.0,0.95627832]
[1768773150465,0.96707553,3341.0,3340.0,0.95627832]
[1768773150669,0.1497,3341.1,3340.0,0.95627832]
[1768773150969,0.96707548,3341.0,3340.0,0.95627832]
[1768773151169,0.1497,3341.1,3340.0,0.95627832]
[1768773151377,0.96707548,3341.0,3340.0,0.95627832]
[1768773151680,0.1497,3341.1,3340.0,0.95627832]
[1768773151977,0.96734443,3341.0,3340.0,0.95627832]
[1768773152177,0.1497,3341.1,3340.0,0.95627832]
[1768773152379,0.96734022,3341.0,3340.0,0.95627832]
[1768773152580,0.1497,3341.1,3340.0,0.95627832]
[1768773152778,0.96732902,3341.0,3340.0,0.95627832]
[1768773152971,0.1497,3341.1,3340.0,0.95627832]
[1768773153167,0.96732902,3341.0,3340.0,0.95627832]
[1768773153379,0.1497,3341.1,3340.0,0.95627832]
[1768773153583,0.9674605,3341.0,3340.0,0.95627832]
[1768773153778,0.1497,3341.1,3340.0,0.95627832]
[1768773154081,0.9674605,3341.0,3340.0,0.95627832]
[1768773154280,0.1497,3341.1,3340.0,0.95627832]
[1768773154479,0.96760951,3341.0,3340.0,0.95627832]
[1768773154682,0.1497,3341.1,3340.0,0.95627832]
[1768773154983,0.96760951,3341.0,3340.0,0.95627832]
[1768773155283,0.1497,3341.1,3339.6,0.3103581]
[1768773155284,0.1497,3341.1,3340.1,0.95627832]
[1768773155483,0.9677715,3341.0,3340.1,0.95627832]
[1768773155684,0.1497,3341.1,3340.1,0.95627832]
[1768773155877,0.96776863,3341.0,3340.1,0.95627832]
[1768773156078,0.1497,3341.1,3340.1,0.95627832]
[1768773156278,0.9677012,3341.0,3340.1,0.95627832]
[1768773156479,0.1497,3341.1,3340.1,0.95627832]
[1768773156679,0.96787027,3341.0,3340.1,0.95627832]
[1768773156879,0.1497,3341.1,3340.1,0.95627832]
[1768773157178,0.96763263,3341.0,3340.1,0.95627832]
[1768773157378,0.1497,3341.1,3340.1,0.95627832]
[1768773157583,0.96781669,3341.0,3340.1,0.95627832]
[1768773157785,0.1497,3341.1,3340.1,0.95627832]
[1768773170704,6.357,3341.5,3339.3,0.00232759]
[1768773170705,0.1497,3341.0,3339.8,0.95627832]
[1768773171203,0.1497,3341.0,3340.0,0.95627832]
[1768773178307,0.1497,3341.0,3339.7,0.31937847]
[1768773178508,0.1497,3341.0,3340.0,0.95627832]
[1768773179812,0.14969,3341.4,3340.7,0.95627832]
[1768773180614,0.14967,3341.7,3340.7,0.95627832]
[1768773180813,0.96840365,3341.6,3340.7,0.95627832]
[1768773181014,0.96840365,3341.5,3340.7,0.95627832]
[1768773181208,0.96840365,3341.4,3340.7,0.95627832]
[1768773181414,0.29619759,3342.2,3340.9,0.95627832]
[1768773181415,0.14965,3342.1,3340.9,0.95627832]
[1768773181613,0.96843106,3342.0,3340.9,0.95627832]
[1768773181804,0.96843106,3341.9,3340.9,0.95627832]
[1768773182008,0.96843106,3341.8,3340.9,0.95627832]
[1768773182210,0.14966,3342.0,3340.9,0.95627832]
[1768773182409,0.96795591,3341.9,3340.9,0.95627832]
[1768773182609,0.96795591,3341.8,3340.9,0.95627832]
[1768773182810,0.14966,3342.0,3340.9,0.95627832]
[1768773183105,0.96796809,3341.9,3340.7,0.31937847]
[1768773183308,0.14966,3342.0,3340.7,0.31937847]
[1768773183520,0.96767448,3341.9,3340.7,0.31937847]
[1768773183709,0.14966,3342.0,3340.7,0.31937847]
[1768773183909,0.96767445,3341.9,3340.7,0.31937847]
[1768773184112,0.14966,3342.0,3340.7,0.31937847]
[1768773184311,0.96742117,3341.9,3340.7,0.31937847]
[1768773184619,0.14966,3342.0,3340.7,0.31937847]
[1768773184820,0.96742957,3341.9,3340.7,0.31937847]
[1768773185022,0.14966,3342.0,3340.7,0.31937847]
[1768773192535,6.50665,3342.3,3340.7,0.31937847]
[1768773192735,0.00296593,3342.4,3341.3,0.31937847]
[1768773193533,0.29619759,3343.1,3341.6,0.95616826]
[1768773193534,0.14962,3343.0,3341.6,0.95616826]
[1768773193729,0.1496,3343.4,3341.7,0.31937847]
[1768773193932,0.96578554,3343.3,3341.7,0.31937847]
[1768773194136,0.96578554,3343.2,3341.7,0.31937847]
[1768773194329,0.1496,3343.3,3341.7,0.31937847]
[1768773194736,0.15184857,3343.3,3341.7,0.32158734]
[1768773194934,0.14961,3343.2,3341.7,0.32158734]
[1768773198345,0.00224857,3343.3,3341.9,0.31937847]
[1768773201739,0.29844616,3343.3,3341.7,0.00220887]
[1768773201944,0.14962,3342.8,3341.7,0.00220887]
[1768773203440,0.14963,3342.7,3341.7,0.00220887]
[1768773205143,0.00224857,3343.3,3341.7,0.3258034]
[1768773205343,0.14961,3343.1,3341.7,0.3258034]
[1768773210246,0.14961,3343.0,3341.7,0.3258034]
[1768773217056,0.14962,3342.9,3341.7,0.3258034]
[1768773217253,0.14962,3342.8,3341.7,0.3258034]
[1768773223061,0.14963,3342.7,3341.7,0.3258034]
[1768773223255,0.14963,3342.7,3341.7,0.00220887]
[1768773224762,0.14963,3342.6,3341.7,0.00220887]
[1768773224958,0.14965,3342.3,3341.7,0.00220887]
[1768773225158,0.14965,3342.3,3340.8,2.994]
[1768773225468,0.14965,3342.3,3340.8,3.30902147]
[1768773225669,0.14965,3342.3,3340.9,0.31502147]
[1768773226060,0.14965,3342.3,3340.9,0.31816391]
[1768773228068,0.14963,3342.7,3341.3,0.31502147]
[1768773228265,0.14962,3342.9,3341.3,0.31502147]
[1768773231168,0.96303421,3342.8,3341.3,0.31502147]
[1768773231366,0.14962,3342.9,3341.3,0.31502147]
[1768773231671,0.96303422,3342.8,3341.3,0.31502147]
[1768773231867,0.14962,3342.9,3341.3,0.31502147]
[1768773232064,0.96303425,3342.8,3341.3,0.31502147]
[1768773232361,0.14962,3342.9,3341.3,0.31502147]
[1768773232557,0.96304006,3342.8,3341.3,0.31502147]
[1768773232765,0.14962,3342.9,3341.3,0.31502147]
[1768773232971,0.96304008,3342.8,3341.3,0.31502147]
[1768773233168,0.14962,3342.9,3341.3,0.31502147]
[1768773233370,0.96304593,3342.8,3341.3,0.31502147]
[1768773233674,0.14962,3342.9,3341.3,0.31502147]
[1768773233871,0.96304593,3342.8,3341.3,0.31502147]
[1768773234071,0.14962,3342.9,3341.3,0.31502147]
[1768773234276,0.9630542,3342.8,3341.3,0.31502147]
[1768773234476,0.14962,3342.9,3341.3,0.31502147]
[1768773237174,0.96307563,3342.8,3341.3,0.31502147]
[1768773237374,0.14962,3342.9,3341.3,0.31502147]
[1768773237574,0.96307574,3342.8,3341.3,0.31502147]
[1768773237878,0.14962,3342.9,3341.3,0.31502147]
[1768773238174,0.96307574,3342.8,3341.3,0.31502147]
[1768773238368,0.14962,3342.9,3341.3,0.31502147]
[1768773238567,0.96308708,3342.8,3341.3,0.31502147]
[1768773238768,0.14962,3342.9,3341.3,0.31502147]
[1768773238969,1.11270708,3342.8,3341.3,0.31502147]
[1768773239169,0.14962,3342.8,3341.3,0.31502147]
[1768773240879,0.00224857,3343.3,3341.3,0.31502147]
[1768773241078,0.96317262,3343.2,3341.3,0.31502147]
[1768773241268,0.96317262,3343.1,3341.3,0.31502147]
[1768773241468,0.14962,3342.8,3341.3,0.31502147]
[1768773244181,0.14963,3342.7,3341.3,0.31502147]
[1768773244375,1.27415947,3343.0,3341.3,0.31502147]
[1768773244568,0.14964,3342.5,3341.3,0.31502147]
[1768773246581,0.95596397,3342.4,3341.3,0.31502147]
[1768773248082,1.10560397,3342.4,3341.3,0.31502147]
[1768773248279,0.14965,3342.3,3341.3,0.31502147]
[1768773248581,0.14965,3342.3,3340.9,0.00314244]
[1768773248582,1.10561397,3342.2,3340.9,0.32600253]
[1768773252284,0.14965,3342.2,3341.2,0.95596397]
[1768773252488,0.14965,3342.2,3341.2,1.27882406]
[1768773254395,0.14965,3342.2,3341.2,0.32286009]
[1768773259895,0.95596397,3342.6,3341.2,0.32286009]
[1768773260101,1.11266656,3342.5,3341.2,0.32286009]
[1768773260291,0.14964,3342.5,3341.2,0.32286009]
[1768773260487,0.14964,3342.4,3341.2,0.32286009]
[1768773261596,0.14964,3342.4,3341.4,1.27882406]
[1768773262099,0.14964,3342.4,3341.4,0.32286009]
[1768773263611,0.14963,3342.7,3341.6,0.31875671]
[1768773263797,0.14963,3342.7,3341.8,1.27472068]
[1768773270409,0.14963,3342.6,3341.8,0.31875671]
[1768773270608,0.95596397,3342.4,3341.4,0.31875671]
[1768773271607,1.10560397,3342.4,3341.4,0.31875671]
[1768773274106,0.14964,3342.4,3341.4,0.31875671]
[1768773275111,0.14964,3342.4,3341.4,1.27472068]
[1768773275610,0.95596397,3342.7,3341.5,0.31875671]
[1768773276010,1.10558397,3342.8,3341.5,0.31875671]
[1768773276198,0.9639134,3342.7,3341.5,0.31875671]
[1768773276402,1.10558397,3342.8,3341.5,0.31875671]
[1768773276606,0.96391738,3342.7,3341.5,0.31875671]
[1768773276805,1.10558397,3342.8,3341.5,0.31875671]
[1768773277006,0.96391741,3342.7,3341.5,0.31875671]
[1768773277209,1.10558397,3342.8,3341.5,0.31875671]
[1768773277409,0.96391484,3342.7,3341.5,0.31875671]
[1768773277609,1.10558397,3342.8,3341.5,0.31875671]
[1768773277912,0.96391426,3342.7,3341.5,0.31875671]
[1768773278109,0.14962,3342.8,3341.5,0.31875671]
[1768773278315,0.96390917,3342.7,3341.5,0.31875671]
[1768773278614,0.14962,3342.8,3341.5,0.31875671]
[1768773278915,0.96390943,3342.7,3341.5,0.31875671]
[1768773279111,0.14962,3342.8,3341.5,0.31875671]
[1768773279412,0.96392125,3342.7,3341.5,0.31875671]
[1768773279609,0.14962,3342.8,3341.5,0.31875671]
[1768773279808,0.96392127,3342.7,3341.5,0.31875671]
[1768773280008,0.14962,3342.8,3341.5,0.31875671]
[1768773280209,0.96392124,3342.7,3341.5,0.31875671]
[1768773280410,0.14962,3342.8,3341.5,0.31875671]
[1768773280710,0.96393816,3342.7,3341.5,0.31875671]
[1768773280911,0.14962,3342.8,3341.5,0.31875671]
[1768773281111,0.96393813,3342.7,3341.5,0.31875671]
[1768773281313,0.14962,3342.8,3341.5,0.31875671]
[1768773281612,0.96396369,3342.7,3341.5,0.31875671]
[1768773281815,0.14962,3342.8,3341.5,0.31875671]
[1768773282008,0.96396365,3342.7,3341.5,0.31875671]
[1768773282210,0.14962,3342.8,3341.5,0.31875671]
[1768773282510,0.96399512,3342.7,3341.5,0.31875671]
[1768773282709,0.14964,3342.5,3341.5,0.31875671]
[1768773285920,0.95596397,3342.7,3341.5,0.31875671]
[1768773286216,0.14964,3342.4,3341.5,0.31875671]
[1768773291028,0.95596397,3342.6,3341.5,0.31875671]
[1768773293824,1.10559397,3342.6,3341.5,0.31875671]
[1768773295819,0.14964,3342.5,3341.5,0.31875671]
[1768773304021,1.10561397,3342.3,3341.0,0.35710442]
[1768773306832,0.14965,3342.2,3341.0,0.35710442]
[1768773307934,0.14963,3342.6,3341.0,0.35710442]
[1768773308128,0.96686853,3342.5,3341.2,0.35710442]
[1768773308321,0.14963,3342.6,3341.2,0.35710442]
[1768773308525,0.96683626,3342.5,3341.2,0.35710442]
[1768773308726,0.14963,3342.6,3341.2,0.35710442]
[1768773308926,0.96683643,3342.5,3341.2,0.35710442]
[1768773309130,0.14963,3342.6,3341.2,0.35710442]
[1768773309334,0.9668378,3342.5,3341.2,0.35710442]
[1768773309530,0.14963,3342.6,3341.2,0.35710442]
[1768773309834,0.96683872,3342.5,3341.2,0.35710442]
[1768773310130,0.14963,3342.6,3341.2,0.35710442]
[1768773310335,0.96684482,3342.5,3341.2,0.35710442]
[1768773310631,0.14963,3342.6,3341.2,0.35710442]
[1768773310834,0.96684482,3342.5,3341.2,0.35710442]
[1768773311132,0.14963,3342.6,3341.2,0.35710442]
[1768773311334,0.96685469,3342.5,3341.2,0.35710442]
[1768773311524,0.14963,3342.6,3341.2,0.35710442]
[1768773311725,0.9668547,3342.5,3341.2,0.35710442]
[1768773311923,1.60867048,3343.1,3341.2,0.35710442]
[1768773312125,1.11646386,3343.0,3341.6,0.35710442]
[1768773312331,0.96685386,3342.9,3341.6,0.35710442]
[1768773312633,0.96685386,3342.8,3341.6,0.35710442]
[1768773312833,0.14961,3343.0,3341.6,0.35710442]
[1768773313032,0.96673234,3342.9,3341.6,0.35710442]
[1768773313237,0.15184857,3343.3,3341.8,0.35710442]
[1768773313535,0.96640139,3343.2,3341.8,0.35710442]
[1768773313729,0.96640139,3343.1,3341.8,0.35710442]
[1768773313930,0.96640139,3343.0,3341.8,0.35710442]
[1768773314126,0.15184857,3343.3,3341.8,0.35710442]
[1768773317232,0.00224857,3343.3,3341.8,0.35710442]
[1768773320044,0.15184857,3343.3,3341.8,0.35710442]
[1768773320539,0.14961,3343.2,3341.8,0.35710442]
[1768773321134,0.35628037,3343.3,3340.9,0.00314244]
[1768773321339,0.14962,3342.8,3341.0,0.35710442]
[1768773323040,0.35628037,3343.3,3341.0,0.35710442]
[1768773323232,0.14962,3342.8,3341.0,0.35710442]
[1768773323843,0.14963,3342.6,3341.0,0.35710442]
[1768773325337,0.14964,3342.5,3341.0,0.35710442]
[1768773330142,0.34683597,3342.9,3341.0,0.35710442]
[1768773330348,0.14964,3342.4,3341.0,0.35710442]
[1768773335446,0.34683597,3342.9,3341.0,0.35710442]
[1768773335749,0.96417238,3342.8,3341.0,0.35710442]
[1768773335950,0.14964,3342.4,3341.0,0.35710442]
[1768773348760,0.14965,3342.3,3341.0,0.35710442]
[1768773349551,0.14965,3342.2,3341.0,0.35710442]
[1768773351160,0.14963,3342.6,3341.0,0.35710442]
[1768773351351,0.96613289,3342.5,3341.0,0.35710442]
[1768773351552,0.14963,3342.6,3341.0,0.35710442]
[1768773351760,1.11576854,3342.5,3341.0,0.35710442]
[1768773352055,0.14964,3342.5,3341.0,0.35710442]
[1768773354462,0.14964,3342.5,3341.3,0.36566986]
[1768773358259,0.14962,3342.9,3341.3,0.36566986]
[1768773358465,1.11611624,3342.8,3341.3,0.36566986]
[1768773358762,0.96648624,3342.7,3341.3,0.36566986]
[1768773358963,0.96648624,3342.6,3341.3,0.36566986]
[1768773359165,0.14963,3342.8,3341.3,0.36566986]
[1768773359466,0.96648101,3342.7,3341.3,0.36566986]
[1768773359661,0.96648101,3342.6,3341.3,0.36566986]
[1768773359860,0.96648101,3342.5,3341.3,0.36566986]
[1768773360066,0.14963,3342.8,3341.3,0.36566986]
[1768773360365,1.12060999,3342.7,3341.3,0.36566986]
[1768773360567,0.97097999,3342.6,3341.3,0.36566986]
[1768773360764,0.97097999,3342.5,3341.3,0.36566986]
[1768773360967,0.14963,3342.7,3341.3,0.36566986]
[1768773361168,0.97097341,3342.6,3341.3,0.36566986]
[1768773361366,0.97097341,3342.5,3341.3,0.36566986]
[1768773361560,0.14963,3342.7,3341.3,0.36566986]
[1768773361758,0.97097026,3342.6,3341.3,0.36566986]